fUSD/lending_fUSD_20241016
["ID","MTS","AMOUNT","RATE_DAILY","PERIOD"]
[340372123,1729110646159,-1151.18258117,0.00011,2]
[340372127,1729110646188,-49573.00203574,0.00011,2]
[340372128,1729110646197,-46426.99795763,0.00011,2]
[340372131,1729110646211,-2572.73543658,0.00011,2]
[340372133,1729110667657,500.0,6.94e-05,2]
[340372134,1729110667710,500.0,6.94e-05,2]
[340372135,1729110668410,500.0,6.94e-05,2]
[340372136,1729110668831,500.0,6.94e-05,2]
[340372137,1729110669167,868.0,6.94e-05,2]
[340372138,1729110774749,1015.994299,0.0002,30]
[340372139,1729110797394,500.0,0.00027,120]
[340372140,1729110810593,164.7,0.00010353,2]
[340372141,1729110816419,250.0,0.00010353,2]
[340372142,1729110857357,500.0,0.00010272,2]
[340372144,1729111001327,218.61,0.00010248,2]
[340372145,1729111044833,159.97,0.00010248,2]
[340372146,1729111203134,150.0,0.00027,60]
[340372147,1729111203881,150.0,0.00027,60]
[340372148,1729111204269,150.0,0.00027,60]
[340372149,1729111204615,150.0,0.00027,60]
[340372150,1729111204945,150.0,0.00027,60]
[340372151,1729111205260,150.0,0.00027,60]
[340372152,1729111205635,150.0,0.00027,60]
[340372153,1729111206023,150.0,0.00027,60]
[340372154,1729111206410,150.0,0.00027,60]
[340372155,1729111206796,150.0,0.00027,60]
[340372156,1729111207226,150.0,0.00027,60]
[340372157,1729111207543,150.0,0.00027,60]
[340372158,1729111207935,150.0,0.00027,60]
[340372159,1729111208311,150.0,0.00027,60]
[340372160,1729111208754,150.0,0.00027,60]
[340372161,1729111209136,150.0,0.00027,60]
[340372162,1729111209611,150.0,0.00027,60]
[340372163,1729111210062,150.0,0.00027,60]
[340372164,1729111210480,150.0,0.00027,60]
[340372165,1729111210940,150.0,0.00027,60]
[340372166,1729111221997,2359.52,0.0001022,2]
[340372167,1729111230358,150.0,0.00027,60]
[340372168,1729111242601,154.100505,0.00027,60]
[340372169,1729111253667,1274.71,8.342e-05,2]
[340372170,1729111273763,200.0,0.00010177,2]
[340372171,1729111359719,167.93,0.00010113,2]
[340372172,1729111382369,500.0,0.0001009,2]
[340372173,1729111383057,250.0,0.0001009,2]
[340372174,1729111393973,500.0,0.00027,120]
[340372175,1729111430005,173.2,0.00010218,2]
[340372176,1729111430027,26.8,0.00010218,2]
[340372177,1729111443293,250.0,0.00010254,2]
[340372178,1729111536557,2600.0,0.00027,60]
[340372179,1729111572556,218.61,0.00010288,2]
[340372181,1729111792999,1250.6,8.507e-05,2]
[340372195,1729111832055,-818.698,0.00010576,2]
[340372196,1729111832165,-1978.8290792,0.00010576,2]
[340372201,1729111837982,-663.20124754,0.00010576,2]
[340372202,1729111838304,-4673.51000826,0.00010576,2]
[340372203,1729111838314,-321.0,0.0001063,2]
[340372204,1729111838323,-1250.6,0.00010771,2]
[340372205,1729111838333,-500.0,0.000108,2]
[340372206,1729111838342,-1210.607,0.000108,2]
[340372207,1729111838352,-4679.28299174,0.00010827,2]
[340372208,1729111838520,-1071.42,0.00010827,2]
[340372217,1729111839929,-1359.055,0.00010827,2]
[340372218,1729111840041,-20159.56254257,0.00010827,2]
[340372219,1729111840050,-173.2,0.00010827,2]
[340372220,1729111840059,-150.0,0.00010877,2]
[340372221,1729111840068,-150.0,0.00010899,2]
[340372222,1729111840078,-219.6,0.00010899,2]
[340372223,1729111840086,-1202.0218,0.000109,2]
[340372224,1729111840095,-6053.3136,0.000109,2]
[340372225,1729111840104,-269.6902,0.000109,2]
[340372226,1729111840113,-46111.3408,0.000109,2]
[340372227,1729111840123,-1000.0,0.000109,2]
[340372228,1729111840132,-6738.1986,0.000109,2]
[340372229,1729111840141,-3318.2356,0.000109,2]
[340372230,1729111840150,-247.7465455,0.000109,2]
[340372232,1729111840159,-352.2339743,0.000109,2]
[340372234,1729111840167,-3725.94377375,0.000109,2]
[340372236,1729111840176,-157.36847043,0.000109,2]
[340372237,1729111840186,-200.47863496,0.000109,2]
[340372239,1729111840195,-316.98439216,0.000109,2]
[340372241,1729111840204,-171.118,0.00010929,2]
[340372243,1729111840213,-499.99,0.00010929,2]
[340372245,1729111840222,-225.53,0.00010959,2]
[340372247,1729111840231,-541.28,0.00010959,2]
[340372249,1729111840241,-250.0,0.00010959,2]
[340372251,1729111840250,-500.0,0.00010973,2]
[340372253,1729111840259,-500.0,0.00010973,2]
[340372255,1729111840268,-179.58706009,0.00010973,2]
[340372257,1729111840277,-152.23415254,0.0001099,2]
[340372259,1729111840286,-139.75578408,0.0001099,2]
[340372261,1729111840299,-12.47836846,0.0001099,2]
[340372263,1729111840308,-38113.2957081,0.00010994,2]
[340372265,1729111840316,-1172.06998928,0.00010994,2]
[340372268,1729111840336,-1825.52847932,0.00010994,2]
[340372270,1729111840345,-2469.7717261,0.00010994,2]
[340372272,1729111840354,-9070.9840431,0.00010994,2]
[340372274,1729111840363,-560.0,0.00010999,2]
[340372275,1729111840372,-1245.0,0.00010999,2]
[340372276,1729111840381,-449.0,0.00010999,2]
[340372277,1729111840391,-812.0,0.00010999,2]
[340372278,1729111840399,-935.0,0.00010999,2]
[340372279,1729111840408,-555.0,0.00010999,2]
[340372280,1729111840417,-1909.0,0.00010999,2]
[340372281,1729111840426,-3357.0,0.00010999,2]
[340372282,1729111840435,-809.0,0.00010999,2]
[340372283,1729111840444,-150.0,0.00010999,2]
[340372284,1729111840453,-5885.0,0.00010999,2]
[340372285,1729111840462,-250.0,0.00010999,2]
[340372286,1729111840471,-150.0,0.00010999,2]
[340372287,1729111840480,-1150.0,0.00010999,2]
[340372288,1729111840489,-13532.0,0.00010999,2]
[340372289,1729111840498,-150.0,0.00010999,2]
[340372290,1729111840507,-583.0,0.00011,2]
[340372291,1729111840516,-448520.19179602,0.00011,2]
[340372292,1729111840525,-270336.77634289,0.00011,2]
[340372414,1729111843070,-2379.95859582,0.00011,2]
[340372415,1729111843181,-8014.03193021,0.00011,2]
[340372434,1729111845992,-523.0,0.00010999,2]
[340372435,1729111846158,-561.0,0.00010999,2]
[340372436,1729111846168,-523.0,0.00011,2]
[340372437,1729111846177,-4225.30513867,0.00011,2]
[340372440,1729111942373,1070.7301,0.00010314,2]
[340372441,1729111994673,500.0,0.00026514,120]
[340372442,1729112146583,160.15,0.00010385,2]
[340372443,1729112202174,150.0,0.00010314,2]
[340372444,1729112323830,150.0,0.00010316,2]
[340372445,1729112368665,1164.53,8.336e-05,2]
[340372446,1729112372102,550.0,0.0001,2]
[340372447,1729112445397,150.0,0.00010318,2]
[340372448,1729112491075,766.41,0.00010156,2]
[340372460,1729112534159,200.0,0.00010141,2]
[340372461,1729112552196,1000.0,0.00010145,2]
[340372462,1729112566881,250.0,0.00010136,2]
[340372463,1729112567265,150.0,0.0001032,2]
[340372464,1729112572477,250.0,0.00010167,2]
[340372465,1729112685024,159.97,0.00010271,2]
[340372467,1729113032403,-150.0,0.00010506,2]
[340372468,1729113032412,-187.01913656,0.000106,2]
[340372469,1729113034998,-977.51086344,0.000106,2]
[340372470,1729113035007,-798.99499967,0.0001089,2]
[340372471,1729113035056,-1653.0303304,0.0001089,2]
[340372517,1729113038129,-3697.21711081,0.0001089,2]
[340372518,1729113038138,-537.14522923,0.00010894,2]
[340372519,1729113038456,-5726.93717077,0.00010894,2]
[340372520,1729113038467,-590.2073,0.00010894,2]
[340372521,1729113038476,-918.7252,0.00010899,2]
[340372522,1729113038486,-337.0191,0.00010899,2]
[340372523,1729113038495,-150.0,0.00010899,2]
[340372524,1729113038504,-1244.18367423,0.000109,2]
[340372525,1729113038514,-1244.18367423,0.000109,2]
[340372526,1729113038523,-4765.21396853,0.000109,2]
[340372527,1729113038538,-290.73387576,0.000109,2]
[340372530,1729113040203,-824.14377842,0.000109,2]
[340372531,1729113040215,-6.60417729,0.000109,2]
[340372532,1729113040228,-256.98632471,0.000109,2]
[340372533,1729113040372,-581.61567529,0.000109,2]
[340372534,1729113040383,-168.92543525,0.000109,2]
[340372535,1729113040396,-955.12208119,0.000109,2]
[340372773,1729113043209,-6544.87791881,0.000109,2]
[340372774,1729113043219,-6047.67308118,0.000109,2]
[340372775,1729113043322,-733.88989214,0.000109,2]
[340372780,1729113046213,-874.48889305,0.000109,2]
[340372781,1729113046312,-2747.82833931,0.000109,2]
[340372782,1729113046322,-165.16436366,0.000109,2]
[340372783,1729113046334,-308.3518503,0.000109,2]
[340372784,1729113046351,-3357.0,0.00010931,2]
[340372785,1729113046360,-287.88780311,0.00010931,2]
[340372786,1729113046371,-1621.11219689,0.00010931,2]
[340372787,1729113046380,-809.0,0.00010931,2]
[340372788,1729113046391,-499.99,0.00010931,2]
[340372789,1729113046400,-13532.0,0.00010931,2]
[340372790,1729113046410,-150.0,0.00010931,2]
[340372791,1729113046419,-1150.0,0.00010931,2]
[340372792,1729113046428,-5885.0,0.00010931,2]
[340372794,1729113046438,-1084.0,0.00010931,2]
[340372796,1729113046447,-433.02,0.00010959,2]
[340372798,1729113046457,-167.96,0.00010959,2]
[340372799,1729113046466,-250.0,0.00010959,2]
[340372800,1729113046475,-426.0,0.00010959,2]
[340372801,1729113046484,-500.0,0.0001097,2]
[340372802,1729113046493,-6514.41780312,0.00010994,2]
[340372803,1729113195101,500.0,0.00026878,120]
[340372804,1729113217193,250.0,0.00010391,2]
[340372805,1729113365644,160.15,0.00010314,2]
[340372806,1729113418370,53043.67239873,0.0001,2]
[340372807,1729113419613,150.0,0.0001035,2]
[340372808,1729113541418,150.0,0.00010352,2]
[340372809,1729113657416,1130.04501989,0.00010999,3]
[340372810,1729113663034,150.0,0.00010354,2]
[340372811,1729113737185,1156.06,8.325e-05,2]
[340372812,1729113782225,269.6914,0.00010345,2]
[340372813,1729113786599,150.0,0.00010356,2]
[340372814,1729113795480,376.029888,0.00026,120]
[340372815,1729113903954,159.97,0.0001024,2]
[340372816,1729113908396,150.0,0.00010358,2]
[340372817,1729114030201,150.0,0.0001036,2]
[340372821,1729114152015,150.0,0.00010362,2]
[340372824,1729114196210,550.0,0.0001,2]
[340372828,1729114232250,-1000.0,0.00010445,2]
[340372830,1729114232259,-704.52015482,0.00010589,2]
[340372832,1729114232313,-277.5783648,0.00010589,2]
[340372833,1729114232324,-173.96148038,0.00010589,2]
[340372834,1729114232333,-254.46077579,0.000107,2]
[340372835,1729114232342,-163.44,0.00010744,2]
[340372836,1729114232351,-142.84930819,0.00010774,2]
[340372837,1729114235065,-528.03269181,0.00010774,2]
[340372838,1729114235074,-500.0,0.00010873,2]
[340372839,1729114235088,-500.0,0.00010873,2]
[340372840,1729114235098,-51.66307772,0.00010873,2]
[340372841,1729114235130,-590.62341241,0.00010873,2]
[340372842,1729114235140,-300.0,0.00010879,2]
[340372843,1729114235149,-150.0,0.00010879,2]
[340372844,1729114235159,-1162.93626239,0.0001088,2]
[340372845,1729114235171,-812.39353337,0.0001088,2]
[340372846,1729114235182,-11576.25247976,0.0001088,2]
[340372849,1729114238270,-762.66851163,0.0001088,2]
[340372851,1729114238281,-44852.30939882,0.0001088,2]
[340372852,1729114238389,-62186.5445998,0.0001088,2]
[340372853,1729114238400,-618.74932003,0.0001088,2]
[340372854,1729114238412,-18943.76812934,0.0001088,2]
[340372855,1729114238423,-8208.53520196,0.0001088,2]
[340372856,1729114238435,-1019.83248483,0.0001088,2]
[340372857,1729114238446,-393.01182328,0.0001088,2]
[340372858,1729114238457,-6214.73959699,0.0001088,2]
[340372859,1729114238468,-509.16789362,0.0001088,2]
[340372860,1729114238504,-1080.68345125,0.0001088,2]
[340372861,1729114238622,-204642.33127769,0.0001088,2]
[340372862,1729114238631,-7500.0,0.000109,2]
[340372863,1729114238641,-162.38447139,0.000109,2]
[340372864,1729114238651,-323.17827027,0.000109,2]
[340372865,1729114238660,-2483.96251582,0.000109,2]
[340372866,1729114238670,-499.99,0.000109,2]
[340372867,1729114238679,-471.0791062,0.000109,2]
[340372868,1729114238688,-500.0,0.00010912,2]
[340372869,1729114238697,-176.417,0.00010958,2]
[340372870,1729114238707,-182.43,0.00010959,2]
[340372871,1729114238716,-434.68,0.00010959,2]
[340372872,1729114238725,-214.25,0.00010959,2]
[340372873,1729114238735,-500.0,0.00010973,2]
[340372874,1729114238744,-509.56664771,0.00010973,2]
[340372875,1729114238753,-509.90090865,0.00010973,2]
[340372876,1729114238762,-204.24251937,0.00010973,2]
[340372877,1729114238771,-578.95672834,0.00010973,2]
[340372878,1729114238780,-150.0,0.00010982,2]
[340372879,1729114238790,-1752.18049719,0.00010998,2]
[340372880,1729114238799,-935.0,0.00010998,2]
[340372881,1729114238808,-1909.0,0.00010998,2]
[340372882,1729114238817,-3357.0,0.00010998,2]
[340372883,1729114238827,-809.0,0.00010998,2]
[340372884,1729114238836,-528.02926322,0.00010998,2]
[340372886,1729114240212,-784.15733431,0.000109,2]
[340372888,1729114240224,-478.75263346,0.000109,2]
[340372890,1729114240276,-2266.00000008,0.000109,2]
[340372891,1729114240288,-572.19529931,0.000109,2]
[340372892,1729114240298,-463.15769535,0.000109,2]
[340372893,1729114240309,-476.45777715,0.000109,2]
[340372894,1729114240320,-304.33735203,0.000109,2]
[340372895,1729114240350,-701.66503495,0.000109,2]
[340372896,1729114240363,-1453.27687336,0.000109,2]
[340372897,1729114240373,-334.28117826,0.00010973,2]
[340372898,1729114240385,-165.71882174,0.00010973,2]
[340372899,1729114240396,-437.07853606,0.00010998,2]
[340372900,1729114240406,-118.89220072,0.00010998,2]
[340372901,1729114240415,-560.0,0.00010998,2]
[340372902,1729114240426,-812.0,0.00010998,2]
[340372903,1729114240435,-551.397,0.00010998,2]
[340372904,1729114240447,-150.0,0.00010998,2]
[340372905,1729114240457,-5885.0,0.00010998,2]
[340372906,1729114240467,-1245.0,0.00010998,2]
[340372907,1729114240477,-21604.18803429,0.00010999,2]
[340372908,1729114240486,-500.0,0.00010999,2]
[340372909,1729114240497,-500.0,0.00010999,2]
[340372910,1729114240506,-257.01482969,0.00010999,2]
[340372911,1729114240516,-220.0,0.00010999,2]
[340372912,1729114240526,-250.0,0.00010999,2]
[340372913,1729114240536,-264.337,0.00010999,2]
[340372914,1729114240545,-272.421,0.00010999,2]
[340372915,1729114240555,-290.064,0.00010999,2]
[340372916,1729114240564,-163.887,0.00010999,2]
[340372917,1729114240574,-288.714,0.00010999,2]
[340372919,1729114240583,-250.0,0.00010999,2]
[340372921,1729114240593,-263.409,0.00010999,2]
[340372923,1729114240602,-229.876,0.00010999,2]
[340372925,1729114240611,-281.157,0.00010999,2]
[340372927,1729114240620,-150.188,0.00010999,2]
[340372929,1729114240629,-202.17,0.00010999,2]
[340372931,1729114240638,-201.575,0.00010999,2]
[340372933,1729114240647,-10693.72052133,0.00010999,2]
[340372934,1729114240656,-602.0,0.00011,2]
[340372936,1729114240666,-1183448.96023975,0.00011,2]
[340372938,1729114240677,-379.485462,0.00011,2]
[340372940,1729114240689,-5159.49395531,0.00011,2]
[340372943,1729114240701,-5483.45,0.00011,2]
[340372945,1729114240712,-844.59940541,0.00011,2]
[340372948,1729114240730,-901.97564511,0.00011,2]
[340372950,1729114240742,-1305.1161,0.00011,2]
[340372956,1729114240789,-924.73356299,0.00011,2]
[340372958,1729114240801,-6896.22910835,0.00011,2]
[340372959,1729114240813,-1986.34492326,0.00011,2]
[340372960,1729114240824,-889.49999995,0.00011,2]
[340372961,1729114240835,-998.56,0.00011,2]
[340372962,1729114240846,-400.075,0.00011,2]
[340372963,1729114240856,-1663.5002,0.00011,2]
[340372964,1729114240867,-355.31187741,0.00011,2]
[340372965,1729114240879,-621.51461131,0.00011,2]
[340372966,1729114240890,-649.3459361,0.00011,2]
[340372967,1729114240901,-803.18423778,0.00011,2]
[340372968,1729114240916,-20776.22156443,0.00011,2]
[340372969,1729114240927,-6823.92594344,0.00011,2]
[340372970,1729114240950,-1150.0,0.00010998,2]
[340372971,1729114240961,-12321.89695095,0.00011,2]
[340372972,1729114240973,-83348.20398924,0.00011,2]
[340372982,1729114243300,-500.0,0.00010958,2]
[340372983,1729114243309,-177.97832269,0.00010958,2]
[340372984,1729114243474,-93.83185404,0.00010958,2]
[340372985,1729114243483,-195.08330132,0.00010999,2]
[340372986,1729114243493,-823.40643701,0.00011,2]
[340372987,1729114243504,-369.04840763,0.00011,2]
[340372988,1729114243515,-530.49825057,0.00011,2]
[340372989,1729114243526,-1202.82442801,0.00011,2]
[340372991,1729114246282,-2194.15517873,0.00010998,2]
[340372992,1729114246343,-5999.99999953,0.00010998,2]
[340372993,1729114246354,-5337.84482174,0.00010998,2]
[340372994,1729114246364,-46772.90870484,0.00011,2]
[340372995,1729114246410,-393.6201291,0.00011,2]
[340372996,1729114246422,-5062.62290345,0.00011,2]
[340372997,1729114277429,1075.52,8.51e-05,2]
[340372999,1729114779537,163.44,9.882e-05,2]
[340373000,1729114822754,250.0,9.884e-05,2]
[340373001,1729114839394,1057.25,8.219e-05,2]
[340373002,1729114880669,150.0,0.00010378,2]
[340373003,1729115002102,150.0,0.00010327,2]
[340373004,1729115009462,158.61,9.879e-05,2]
[340373005,1729115064926,200.0,9.882e-05,2]
[340373006,1729115082336,250.0,9.882e-05,2]
[340373007,1729115123717,150.0,0.00010329,2]
[340373008,1729115124102,1000.0,9.869e-05,2]
[340373009,1729115245279,150.0,0.00010331,2]
[340373010,1729115259652,684.99,9.875e-05,2]
[340373011,1729115356728,1004.38,8.219e-05,2]
[340373012,1729115366947,150.0,0.00010334,2]
[340373014,1729115406571,250.0,9.872e-05,2]
[340373016,1729115431509,-300.0,0.00010417,2]
[340373017,1729115431523,-449.22986514,0.00010417,2]
[340373018,1729115431583,-2549.82903786,0.00010417,2]
[340373019,1729115431593,-1004.38,0.0001047,2]
[340373020,1729115431603,-150.0,0.00010712,2]
[340373021,1729115431613,-150.0,0.00010725,2]
[340373022,1729115431623,-150.0,0.0001073,2]
[340373023,1729115431632,-150.0,0.00010735,2]
[340373024,1729115431641,-300.0,0.00010737,2]
[340373025,1729115431651,-1500.0,0.00010738,2]
[340373026,1729115431661,-150.0,0.00010739,2]
[340373027,1729115431670,-150.0,0.0001074,2]
[340373028,1729115431678,-150.0,0.0001074,2]
[340373029,1729115431687,-150.0,0.00010742,2]
[340373030,1729115431696,-499.99,0.00010742,2]
[340373031,1729115431705,-150.0,0.00010746,2]
[340373032,1729115431716,-145.76215777,0.00010752,2]
[340373033,1729115431735,-4.23784223,0.00010752,2]
[340373034,1729115431744,-150.0,0.00010753,2]
[340373035,1729115431754,-150.0,0.00010753,2]
[340373036,1729115431763,-150.0,0.00010756,2]
[340373037,1729115431772,-150.0,0.00010757,2]
[340373038,1729115431781,-150.0,0.00010758,2]
[340373039,1729115431790,-150.0,0.00010759,2]
[340373040,1729115431800,-150.0,0.00010762,2]
[340373041,1729115431809,-150.0,0.00010765,2]
[340373042,1729115431818,-150.0,0.00010771,2]
[340373043,1729115431827,-150.0,0.00010771,2]
[340373044,1729115431836,-150.0,0.00010771,2]
[340373045,1729115431846,-150.0,0.00010773,2]
[340373046,1729115431855,-150.0,0.00010773,2]
[340373047,1729115431864,-150.0,0.00010776,2]
[340373048,1729115431873,-150.0,0.00010781,2]
[340373049,1729115431882,-150.0,0.00010782,2]
[340373050,1729115431891,-150.0,0.00010782,2]
[340373051,1729115431902,-150.0,0.00010783,2]
[340373052,1729115431913,-150.0,0.00010784,2]
[340373053,1729115431924,-150.0,0.00010794,2]
[340373054,1729115431935,-150.0,0.000108,2]
[340373055,1729115431944,-150.0,0.00010806,2]
[340373056,1729115431953,-150.0,0.00010807,2]
[340373057,1729115431962,-150.0,0.00010807,2]
[340373058,1729115431972,-137.19750789,0.00010808,2]
[340373059,1729115431983,-1362.80249211,0.00010808,2]
[340373060,1729115431992,-1500.0,0.00010812,2]
[340373061,1729115432001,-150.0,0.00010813,2]
[340373062,1729115432010,-150.0,0.00010817,2]
[340373063,1729115432019,-150.0,0.00010818,2]
[340373064,1729115432028,-150.0,0.00010821,2]
[340373065,1729115432038,-150.0,0.00010822,2]
[340373066,1729115432048,-150.0,0.00010827,2]
[340373067,1729115432057,-150.0,0.00010827,2]
[340373068,1729115432065,-150.0,0.0001083,2]
[340373069,1729115432074,-150.0,0.00010832,2]
[340373070,1729115432083,-150.0,0.00010832,2]
[340373071,1729115432094,-150.0,0.00010833,2]
[340373072,1729115432104,-150.0,0.00010835,2]
[340373073,1729115432114,-150.0,0.00010839,2]
[340373074,1729115432123,-150.0,0.0001084,2]
[340373075,1729115432132,-150.0,0.00010842,2]
[340373076,1729115432142,-150.0,0.00010843,2]
[340373077,1729115432151,-150.0,0.00010843,2]
[340373078,1729115432160,-150.0,0.00010845,2]
[340373079,1729115432169,-1500.0,0.00010846,2]
[340373080,1729115432178,-150.0,0.00010849,2]
[340373081,1729115432187,-1500.0,0.00010849,2]
[340373082,1729115432197,-150.0,0.00010852,2]
[340373083,1729115432206,-150.0,0.00010854,2]
[340373084,1729115432216,-150.0,0.00010864,2]
[340373085,1729115432224,-1500.0,0.00010868,2]
[340373086,1729115432234,-150.0,0.00010875,2]
[340373087,1729115432243,-1500.0,0.00010876,2]
[340373088,1729115432252,-150.0,0.00010878,2]
[340373089,1729115432262,-150.0,0.00010881,2]
[340373090,1729115432271,-150.0,0.00010885,2]
[340373091,1729115432280,-150.0,0.00010895,2]
[340373092,1729115432289,-4191.09750789,0.00010899,2]
[340373096,1729115437991,-742.11629914,0.0001073,2]
[340373097,1729115438001,-277.0527081,0.0001073,2]
[340373098,1729115438016,-3128.79047711,0.0001073,2]
[340373099,1729115438025,-4852.17743772,0.00010899,2]
[340373101,1729115439578,-433.89613071,0.00010899,2]
[340373102,1729115439588,-2180.14699125,0.000109,2]
[340373124,1729115442546,-720.70825157,0.000109,2]
[340373125,1729115442813,-2.48655718,0.000109,2]
[340373126,1729115442822,-1000.0,0.000109,2]
[340373127,1729115442831,-176.14466607,0.000109,2]
[340373128,1729115442841,-245.94640082,0.000109,2]
[340373129,1729115442850,-186.0174522,0.000109,2]
[340373130,1729115442859,-2536.14027108,0.000109,2]
[340373131,1729115442868,-1500.0,0.00010901,2]
[340373132,1729115442878,-1500.0,0.00010907,2]
[340373133,1729115442888,-150.0,0.0001091,2]
[340373134,1729115442899,-150.0,0.00010911,2]
[340373135,1729115442910,-150.0,0.00010911,2]
[340373136,1729115442919,-150.0,0.00010918,2]
[340373137,1729115442929,-150.0,0.00010923,2]
[340373138,1729115442939,-150.0,0.00010926,2]
[340373139,1729115442949,-150.0,0.00010927,2]
[340373140,1729115442960,-55.96561202,0.00010929,2]
[340373157,1729115445464,-94.03438798,0.00010929,2]
[340373158,1729115445474,-150.0,0.0001093,2]
[340373160,1729115445483,-150.0,0.00010935,2]
[340373163,1729115445496,-150.0,0.00010939,2]
[340373165,1729115445511,-16.79024108,0.00010939,2]
[340373166,1729115445672,-593.908839,0.00010939,2]
[340373167,1729115445688,-889.30091992,0.00010939,2]
[340373168,1729115445701,-150.0,0.00010948,2]
[340373169,1729115445716,-150.0,0.00010954,2]
[340373170,1729115445729,-150.0,0.00010956,2]
[340373171,1729115445744,-150.0,0.00010957,2]
[340373172,1729115445757,-150.0,0.00010957,2]
[340373173,1729115445770,-150.0,0.00010958,2]
[340373174,1729115445783,-327.65696432,0.00010959,2]
[340373175,1729115484750,450.0,9.998e-05,2]
[340373176,1729115571233,182.41,9.982e-05,2]
[340373177,1729115616470,250.0,9.982e-05,2]
[340373178,1729115630866,795.63,0.00010063,2]
[340373179,1729115636693,418.92,9.993e-05,2]
[340373180,1729115651862,150.0,9.981e-05,2]
[340373181,1729115663460,154.66,9.981e-05,2]
[340373182,1729115699436,200.0,9.981e-05,2]
[340373189,1729115780825,23900.0,9.916e-05,2]
[340373193,1729115850632,687.55,9.9e-05,2]
[340373194,1729115977603,939.72,8.219e-05,2]
[340373195,1729116020396,550.0,0.0001,2]
[340373196,1729116095142,150.0,0.00010379,2]
[340373197,1729116130585,250.0,9.888e-05,2]
[340373198,1729116216689,150.0,0.00010381,2]
[340373199,1729116219973,154.66,9.885e-05,2]
[340373200,1729116297356,840.0,9.863e-05,2]
[340373202,1729116324874,11629.48,9.885e-05,2]
[340373203,1729116339630,150.0,0.00010383,2]
[340373204,1729116461634,150.0,0.00010385,2]
[340373205,1729116466102,3827.77,9.944e-05,2]
[340373206,1729116472882,163.44,9.867e-05,2]
[340373207,1729116494555,250.0,9.867e-05,2]
[340373208,1729116527219,946.79,8.219e-05,2]
[340373209,1729116542775,1556.5,9.885e-05,2]
[340373214,1729116583446,150.0,0.00010386,2]
[340373224,1729116631683,-291.26630725,0.0001047,2]
[340373225,1729116631709,-604.98,0.0001047,2]
[340373226,1729116631720,-50.54369275,0.0001047,2]
[340373227,1729116631730,-954.51483382,0.00010635,2]
[340373228,1729116631739,-150.0,0.00010735,2]
[340373229,1729116631748,-150.0,0.00010736,2]
[340373230,1729116631758,-150.0,0.00010736,2]
[340373231,1729116631767,-150.0,0.00010738,2]
[340373232,1729116631776,-79.92924596,0.00010738,2]
[340373233,1729116631819,-21284.60461405,0.00010738,2]
[340373234,1729116631828,-1500.0,0.00010739,2]
[340373235,1729116631837,-150.0,0.00010745,2]
[340373236,1729116631846,-150.0,0.00010746,2]
[340373237,1729116631855,-150.0,0.00010747,2]
[340373238,1729116631864,-150.0,0.00010749,2]
[340373239,1729116631873,-499.99,0.00010749,2]
[340373240,1729116631883,-207.32,0.00010749,2]
[340373241,1729116631892,-300.0,0.00010749,2]